Cogmind - Beta 10 @@@ ROGUE MODE // 2020.09.16 @ 20:28:32 Player: Rhea Result: Destroyed by G-34 Mercenary with Small Laser Performance ------------- Evolutions (1) 500 Regions Visited (2) 400 Robots Destroyed (12) 60 Value Destroyed (299) 299 Prototype IDs (0) 0 Alien Tech Used (0) 0 Bonus (0) 0 TOTAL SCORE: 1259 Bonus ------- None Cogmind --------- Core Integrity 0/400 Matter 300/300 Energy 100/100 System Corruption 0% Temperature Cool (6) Movement Core (100) Ox1 Location -9/Materials Parts ------- > --- POWER (1) -------- (None) > --- PROPULSION (3) --- (None) > --- UTILITY (2) ------ Small Storage Unit > --- WEAPON (3) ------- (None) > --- INVENTORY (6) ---- Ion Engine EM Shotgun Small Laser Light Cannon Grenade Launcher Peak State ------------ > --- POWER ------------ Improved Ion Engine > --- PROPULSION ------- Aluminum Leg Aluminum Leg > --- UTILITY ---------- Small Storage Unit > --- WEAPON ----------- Medium Laser Assault Rifle > --- INVENTORY -------- Light Ion Engine Light Ion Engine Small Laser [Rating: 7] Favorites ----------- Power Light Ion Engine Engine Light Ion Engine Propulsion Aluminum Leg Leg Aluminum Leg Utility Small Storage Unit Storage Small Storage Unit Weapon Medium Laser Energy Gun Medium Laser Ballistic Gun Assault Rifle Ballistic Cannon Light Cannon Launcher Grenade Launcher Slashing Weapon Mining Claw Build | -11 -10 -9 ------- Run | Scr Mat Mat Slots Evolved 2 | . . 2 Power . | . . . Propulsion 1 | . . 1 Utility . | . . . Weapon 1 | . . 1 Parts Attached 13 | 6 7 . Power 3 | 1 2 . Engine 3 | 1 2 . Core . | . . . Reactor . | . . . Propulsion 2 | 2 . . Treads . | . . . Leg 2 | 2 . . Wheel . | . . . Hover . | . . . Flight . | . . . Utility 1 | 1 . . Device . | . . . Storage 1 | 1 . . Processor . | . . . Hackware . | . . . Protection . | . . . Artifact . | . . . Weapon 7 | 2 5 . Energy Gun 3 | 1 2 . Energy Cannon . | . . . Ballistic Gun 1 | 1 . . Ballistic Cannon 1 | . 1 . Launcher 1 | . 1 . Special Weapon . | . . . Impact Weapon . | . . . Slashing Weapon 1 | . 1 . Piercing Weapon . | . . . Special Melee Weapon . | . . . Unidentified Prototypes . | . . . Parts Lost 7 | . 5 2 Power 2 | . 2 . Propulsion 2 | . 2 . Utility . | . . . Weapon 3 | . 1 2 Highest Loss Streak 2 | . 2 2 Average Slot Usage (%) 67 | . 76 28 Engine 10 | . 12 . Leg 19 | . 24 . Storage 13 | . 14 11 Energy Gun 10 | . 10 7 Ballistic Gun 4 | . 6 . Ballistic Cannon 4 | . 5 . Slashing Weapon 3 | . 2 9 Naked Turns . | . . . Heaviest Build 15 | 11 15 7 Greatest Support 20 | 20 20 3 Greatest Overweight (x) 2 | 1 2 2 Average Overweight (x) . | . . 1 Largest Inventory Capacity 6 | 6 6 6 Average Capacity 5 | 5 6 6 Most Carried 6 | 3 6 5 Average Carried 4 | 1 5 5 Final Capacity 6 | 6 6 6 Final Carried 5 | 2 5 5 Class Distribution -------------------- 100% | Mutant Dominant Class ---------------- Mutant | -10/Materials Mutant | -9/Materials Resources | -11 -10 -9 ----------- Run | Scr Mat Mat Matter Collected 402 | 250 152 . Remotely . | . . . Salvage Created 308 | . 308 . Parts 18 | . 18 . Haulers Intercepted . | . . . Recyclers Shooed 2 | . 2 . Parts Field Recycled . | . . . Retrieved Matter . | . . . Parts Self-Destructed . | . . . Prevented . | . . . Kills | -11 -10 -9 ------- Run | Scr Mat Mat Combat Hostiles Destroyed 8 | . 8 . Melee 1 | . 1 . Guns 2 | . 2 . Cannons 5 | . 5 . Classes Destroyed 6 | . 6 . Worker 1 | . 1 . Recycler 1 | . 1 . Operator 1 | . 1 . Watcher 1 | . 1 . Swarmer 2 | . 2 . Grunt 6 | . 6 . Best Kill Streak 6 | . 6 . Combat Bots Only 4 | . 4 . Max Kills in Single Turn 2 | . 2 . Gunslinging . | . . . Exploded . | . . . Melee 1 | . 1 . Uniques/NPCs Destroyed . | . . . Combat | -11 -10 -9 -------- Run | Scr Mat Mat Damage Taken 1066 | . 568 498 Core 511 | . 106 405 Absorbed by Shields . | . . . Core Remaining (%) 78 | 100 57 . Volleys Fired 18 | . 18 . Largest 2 | . 2 . Hottest 85 | . 85 . Shots Fired 31 | . 31 . Gun 13 | . 13 . Cannon 15 | . 15 . Launcher 3 | . 3 . Special . | . . . Kinetic 15 | . 15 . Thermal 7 | . 7 . Explosive 3 | . 3 . Electromagnetic 6 | . 6 . Robot Hit Streak 14 | . 14 . Robot Miss Streak 3 | . 3 . Penetration Max . | . . . Secondary Targets . | . . . Shots Hit Robots 26 | . 25 1 Core Hits 19 | . 19 . Critical Hits . | . . . Critical Kills . | . . . Critical Parts Destroyed . | . . . Melee Attacks 9 | . 7 2 Impact . | . . . Slashing 9 | . 7 2 Piercing . | . . . Sneak Attacks 2 | . 2 . Combat Hostiles . | . . . Follow-up Attacks . | . . . Damage Inflicted 815 | . 785 30 Guns 142 | . 142 . Cannons 246 | . 246 . Explosions 198 | . 198 . Melee 220 | . 190 30 Ramming 9 | . 9 . Kinetic 246 | . 246 . Thermal 50 | . 50 . Explosive 198 | . 198 . Electromagnetic 92 | . 92 . Impact . | . . . Slashing 220 | . 190 30 Piercing . | . . . Highest Corruption . | . . . Average Corruption . | . . . Corruption Purged . | . . . Overload Shots . | . . . Overflow Damage 10 | . 10 . Projectiles . | . . . Explosions . | . . . Melee 10 | . 10 . Knockbacks 2 | . 2 . Impact . | . . . Kinetic 2 | . 2 . Secondary . | . . . Self-Inflicted Damage 43 | . 43 . Shots 2 | . 2 . Rammed 1 | . 1 . Targets Rammed 1 | . 1 . Kicked . | . . . Crushed . | . . . Highest Temperature 215 | . 215 . Average Temperature 104 | . 104 . Received Heat Transfer 501 | . 225 276 Siege Activations . | . . . Robots Corrupted . | . . . Combat Hostiles . | . . . Parts Fried . | . . . Impact Corruptions . | . . . Robots Melted . | . . . Combat Hostiles . | . . . Parts Melted . | . . . Heat Transferred 148 | . 148 . Parts Sabotaged . | . . . Parts Stolen . | . . . Parts Stripped . | . . . Power Chain Reactions . | . . . Missiles Intercepted . | . . . Alert | -11 -10 -9 ------- Run | Scr Mat Mat Peak Influence 234 | . 234 26 Initial 11 | . . 11 Average 46 | . 63 11 Maximum Alert Level 1 | . 1 . Low Security (%) 91 | 100 88 100 Level 1 8 | . 11 . Level 2 . | . . . Level 3 . | . . . Level 4 . | . . . Level 5 . | . . . High Security . | . . . Max Security . | . . . Squads Dispatched 4 | . 3 1 Investigation . | . . . Extermination . | . . . Reinforcement 4 | . 3 1 Assault . | . . . Garrison . | . . . Intercept . | . . . Construction Impeded . | . . . Haulers Reinforced . | . . . Stealth | -11 -10 -9 --------- Run | Scr Mat Mat Distress Signals 2 | . 1 1 Communications Jammed . | . . . Distress Signals . | . . . Times Spotted 22 | . 15 7 Peak Tracking Total 6 | . 6 5 Tactical Retreats 1 | . 1 . Traps | -11 -10 -9 ------- Run | Scr Mat Mat Traps Triggered . | . . . Indirectly . | . . . Trap Hack Attempts . | . . . Triggered . | . . . Disarmed . | . . . Reprogrammed . | . . . Reused . | . . . Traps Extracted . | . . . Installed . | . . . Triggered . | . . . Machines | -11 -10 -9 ---------- Run | Scr Mat Mat Machines Disabled 1 | . 1 . Max in Single Turn 1 | . 1 . Machines Sabotaged . | . . . Garrisons Compromised . | . . . Overloaded Fab Kills . | . . . Fab Network Shutdowns . | . . . Hacking | -11 -10 -9 --------- Run | Scr Mat Mat Machines Accessed 1 | . 1 . Terminals 1 | . 1 . Fabricators . | . . . Repair Stations . | . . . Recycling Units . | . . . Scanalyzers . | . . . Garrison Access . | . . . Total Hacks 2 | . 2 . Successful 1 | . 1 . Failed 1 | . 1 . Catastrophic . | . . . Database Lockouts . | . . . Manual . | . . . Terminals 2 | . 2 . Fabricators . | . . . Repair Stations . | . . . Recycling Units . | . . . Scanalyzers . | . . . Garrison Access . | . . . Terminal Hacks 1 | . 1 . Record 1 | . 1 . Fabricator Hacks . | . . . Repair Station Hacks . | . . . Recycling Unit Hacks . | . . . Scanalyzer . | . . . Garrison Access Hacks . | . . . Unauthorized Hacks . | . . . Terminals . | . . . Fabricators . | . . . Repair Stations . | . . . Recycling Units . | . . . Scanalyzers . | . . . Garrison Access . | . . . Data Cores Recovered . | . . . Used . | . . . Hacking Detections 1 | . 1 . Full Trace Events . | . . . Feedback Events . | . . . Feedback Blocked . | . . . Robot Schematics Acquired . | . . . Robots Built . | . . . Matter . | . . . Time . | . . . Total Robot Build Rating . | . . . Part Schematics Acquired . | . . . Parts Built . | . . . Matter . | . . . Time . | . . . Total Part Build Rating . | . . . Parts Repaired . | . . . Time . | . . . Parts Recycled . | . . . Recycled Matter . | . . . Retrieved Matter . | . . . Retrieved Components . | . . . Parts Scanalyzed . | . . . Part Schematics Acquired . | . . . Parts Damaged . | . . . Bothacking | -11 -10 -9 ------------ Run | Scr Mat Mat Used RIF Installer . | . . . Robots Hacked . | . . . Non-combat . | . . . Combat . | . . . Robot Hacks Applied . | . . . Relay Couplers Released . | . . . Robots Rewired . | . . . Allies Hacked . | . . . Hacks Repelled . | . . . Allies | -11 -10 -9 -------- Run | Scr Mat Mat Total Allies . | . . . Largest Group . | . . . Highest-Rated Group . | . . . Highest-Rated Ally . | . . . Total Orders . | . . . Ally Attacks . | . . . Total Damage . | . . . Kills . | . . . Allies Corrupted . | . . . Allies Melted . | . . . Intel | -11 -10 -9 ------- Run | Scr Mat Mat Robot Analysis Total . | . . . Derelict Logs Recovered . | . . . Drone Launches . | . . . Drone Recoveries . | . . . Exploration | -11 -10 -9 ------------- Run | Scr Mat Mat Turns Passed 617 | 77 433 107 Spaces Moved 392 | 61 278 53 Core 76 | 16 7 53 Treads . | . . . Legs 316 | 45 271 . Wheels . | . . . Hover . | . . . Flight . | . . . Fastest Speed 50 | 50 120 100 Average Speed 121 | 104 121 146 Slowest Speed 150 | 120 150 150 Overloaded Moves . | . . . Propulsion Burnouts . | . . . Robots Hopped . | . . . Cave-ins Triggered . | . . . Exploration Rate (%) 17 | 3 40 10 Regions Visited 2 Branch Regions . Pre-discovered Areas . | . . . Known Exits Taken . | . . . Unknown Exits Taken 2 | 1 1 . Scrap Searched . | . . . Spaces Dug . | . . . Terrain Destroyed 27 | . 27 . Melee . | . . . Projectile . | . . . AOE 27 | . 27 . Terrain Rammed . | . . . Walls Destroyed . | . . . Machines Disabled . | . . . Actions | -11 -10 -9 --------- Run | Scr Mat Mat Total 482 | 74 329 79 Wait 31 | . 7 24 Move 390 | 60 277 53 Hop . | . . . Pick Up 16 | 8 8 . Fast Attach . | . . . Attach 10 | 6 4 . Detach 1 | . 1 . Swap 3 | . 3 . Drop 3 | . 3 . Fire 18 | . 18 . Melee 9 | . 7 2 Ram . | . . . Kick 1 | . 1 . Crush . | . . . Escape Stasis . | . . . Rewire . | . . . Trap . | . . . Miscellaneous . | . . . Route ------- -11/Scrapyard -10/Materials -9/Materials History --------- Turn | Location | Event 10 | -11/Scrapyard | Discovered new exit (range 14) 78 | -11/Scrapyard | Entered Materials 301 | -10/Materials | Build established: Mutant 491 | -10/Materials | Discovered new exit (range 16) 511 | -10/Materials | Entered another Materials area 511 | -9/Materials | Evolved 2 slots: Propulsion x1, Weapon x1 602 | -9/Materials | Core integrity fell below 50% 612 | -9/Materials | Core integrity fell below 20% 618 | -9/Materials | Destroyed by G-34 Mercenary with Small Laser Last Messages --------------- 00458_ S-10 Pest destroyed. 00463_ R-06 Scavenger collects Ion Engine. 00470_ R-06 Scavenger collects Com. Wheel. 00470_ Sneak attack on A-02 Transporter. 00470_ Destroyed Ion Engine. 00475_ Sneak attack on K-01 Serf. 00475_ K-01 Serf destroyed. 00491_ EXIT=FOUND 00500_ Lgt. Ion Engine destroyed. 00502_ Aluminum Leg destroyed. PARAMETERS=PROPULSION_1,WEAPON_1 LOCATION=UNKNOWN GOAL=ESCAPE 00579_ O-16 Technician: "IFF HANDSHAKE FAILED. SECURING TERMINAL." 00585_ O-16 Technician uses terminal to summon reinforcements. 00585_ ALERT: Hostiles spotted, dispatching reinforcements to Terminal M012. 00585_ O-16 Technician locks terminal. 00589_ Sml. Laser destroyed. 00602_ Mining Claw destroyed. Map ----- +----------------------------------------------------+ | ?????????????????????????????????????????????????? | | ?????????????????????????????????????????????????? | | ?????????????????????????????????????????????????? | | ?????????????????????????????????????????????????? | | ?????????????????????????????????????????????????? | | ?????????????????????????????????????????????????? | | ?????????????????????????????????????????????????? | | ?????????????????????????????????????????????????? | | ?????????????????????????????????????????????????? | | ?????????????????????????????????????????????????? | | ?????????????????????????????????????????????????? | | ?????????????????????????????????????????????????? | | ?????????????????????????????????????????????????? | | ?????????????????????????????????????????????????? | | ??????????????####???????????????????????????????? | | ?????????????? ###################????????????? | | ?????????????w ?????????????? | | ????????????? ?????????????? | | ???????????? ?????????????? | | ????????????# ??????????????? | | ?????????????# ???????????????? | | ?????????????# ????????????????? | | ???????????? # """"????????????????? | | ???????????" + w a gg""""""??????????????? | | ?????????????# """"""" #??????????? | | ?????????????# t @ """"""" #??????????? | | ?????????????# """"""" #??????????? | | ?????????????# "T" #??????????? | | ?????????????# g #??????????? | | ?????????????# #??????????? | | ?????????????##########T#### #??????????? | | ??????????????????????##???# ########??????????? | | ???????????????????????????# u#?????????????????? | | ???????????????????????????# #?????????????????? | | ????????????????????######## #?#########???????? | | ????????????????????# !# # #???????? | | ????????????????????# # # #???????? | | ????????????????????# """ / + #???????? | | ????????????????????# """ # # #???????? | | ?????????????######## """ # ###########???????? | | ?????? + # # #????????? | | ?????????????############### # #????????? | | ???????????????????????????# # #????????? | | ???????????????????????????# # #????????? | | ???????????????????????????# + #????????? | | ???????????????????????????# # #????????? | | ???????????????????????????# # #????????? | | ???????????????????????????# # #????????? | | ???????????????????????????##### #????????? | | ???????????????????????????????##########????????? | +----------------------------------------------------+ Best States ------------- Heat Dissipation 28 Energy Generation 12 Energy Capacity 265 Matter Stores 300 Matter Capacity 300 Sight Range 16 Terrain Scan Density 10 Evasion (%) 50 Item Schematics ----------------- None Robot Schematics ------------------ None Fabricated ------------ Nothing Alien Tech Used ----------------- None Achievements -------------- None Challenges ------------ None Game ------ Seed MatterHeavyAxe Manual? 0 Play Time 00:06:37 Cumulative 1.6 hours Start 2020.09.16 @ 20:22:21 End 2020.09.16 @ 20:28:32 Sessions 1 Manual Loads 0 Difficulty Rogue Special Mode None Game No. 14 Rogue 14 Adventurer 0 Explorer 0 Win Type - Total 0 Types 0/0/0/0/0/0/0/0/0 Lore% 12 Gallery% 4 Achievement% 3 Wizard Run 0 Options --------- ASCII 0 Keyboard 0 Movement Numpad Keybinds 0 Fullscreen 2 Font 18/TerminusBold Map View 76x50 Tactical HUD 1 Map Filters NONE Filters NONE Steam 1 RUN: 59802f46-d7cb-4fa3-8e01-b376023ab607